[Event "22nd OIBM 2018"]
[Site "Gmund am Tegernsee"]
[Date "2018.10.28"]
[Round "2"]
[White "Weber, Ulrich"]
[Black "Lodes, Hermann"]
[Result "1-0"]
[ECO "A06"]
[WhiteElo "2347"]
[BlackElo "2064"]
[Annotator "NA"]
[PlyCount "87"]
[EventDate "2018.10.27"]
[EventType "swiss"]
[EventCountry "GER"]
[SourceTitle "playchess.com"]
[Source "ChessBase"]
[SourceQuality "1"]
[TimeControl "40/5400+30:1800+30"]

1. Nf3 {[%emt 0:00:00]} d5 {[%emt 0:00:00]} 2. g3 {[%emt 0:00:00]} Nf6 {[%emt 0:00:11]} 3. Bg2 {[%emt 0:00:00]} Bf5 {[%emt 0:00:52]} 4. d3 {[%emt 0:00:00]} e6 {[%emt 0:00:49]} 5. O-O {[%emt 0:00:00]} h6 {[%emt 0:00:32]} 6. c4 {[%emt 0:03:38]} c6 {[%emt 0:00:25]} 7. Qb3 {[%emt 0:05:43]} Qb6 {[%emt 0:01:52]} 8. Qxb6 {[%emt 0:09:50]} axb6 {[%emt 0:00:37]} 9. cxd5 {[%emt 0:01:19]} exd5 {[%emt 0:01:01]} 10. Nd4 {[%emt 0:01:54]} Bg6 {[%emt 0:01:26]} 11. Nc3 {[%emt 0:02:52]} b5 {[%emt 0:11:57]} 12. Bf4 {[%emt 0:17:58]} Nbd7 {[%emt 0:04:55]} 13. a3 {[%emt 0:12:47]} Be7 {[%emt 0:00:38]} 14. Bh3 {[%emt 0:18:49]} O-O {[%emt 0:02:47]} 15. Nf5 {[%emt 0:00:17]} Bxf5 {[%emt 0:01:11]} 16. Bxf5 {[%emt 0:00:02]} b4 {[%emt 0:03:11]} 17. axb4 {[%emt 0:01:17]} Bxb4 {[%emt 0:00:14]} 18. Be3 {[%emt 0:04:14]} Rfe8 {[%emt 0:06:42]} 19. Rfc1 {[%emt 0:01:57]} Bd6 {[%emt 0:10:09]} 20. Bh3 {[%emt 0:01:14]} Be5 {[%emt 0:02:37]} 21. d4 {[%emt 0:01:54]} Bd6 {[%emt 0:00:22]} 22. Bd2 {[%emt 0:01:26]} Nb6 {[%emt 0:08:48]} 23. b3 {[%emt 0:00:11]} Kf8 {[%emt 0:05:57]} 24. e3 {[%emt 0:00:31]} Kg8 {[%emt 0:04:00]} 25. Nd1 {[%emt 0:00:34]} Nbd7 {[%emt 0:07:51]} 26. Be1 {[%emt 0:02:33]} g6 {[%emt 0:01:56]} 27. Kf1 {[%emt 0:01:11]} Kg7 {[%emt 0:02:00]} 28. Rcb1 {[%emt 0:01:01]} Nb6 {[%emt 0:06:43]} 29. Nb2 {[%emt 0:00:40]} Nfd7 {[%emt 0:04:35]} 30. Nd3 {[%emt 0:00:30]} f5 {[%emt 0:01:05]} 31. Bc3 {[%emt 0:02:06]} Rxa1 {[%emt 0:01:54]} 32. Rxa1 Ra8 {[%emt 0:00:08]} 33. Nc5 {[%emt 0:00:20]} Rxa1+ 34. Bxa1 {[%emt 0:00:02]} Kf7 {[%emt 0:02:46]} 35. Nxb7 {[%emt 0:00:22]} Bc7 {[%emt 0:01:44]} 36. Bc3 {[%emt 0:00:36]} Nc8 {[%emt 0:01:33]} 37. f3 {[%emt 0:00:55]} Nf6 {[%emt 0:02:08]} 38. Kf2 {[%emt 0:00:32]} Nd6 {[%emt 0:00:27]} 39. Nc5 {[%emt 0:06:34]} g5 {[%emt 0:01:23]} 40. Na6 {[%emt 0:01:22]} Nde4+ {[%emt 0:01:50]} 41. fxe4 Nxe4+ {[%emt 0:30:02]} 42. Ke1 {[%emt 0:30:34]} Bxg3+ {[%emt 0:00:06]} 43. hxg3 {[%emt 0:00:10]} Nxc3 {[%emt 0:00:09]} 44. Bxf5 1-0

[Event "22nd OIBM 2018"]
[Site "Gmund am Tegernsee"]
[Date "2018.10.28"]
[Round "2"]
[White "Singer, Christoph"]
[Black "Thiel, Fabian"]
[Result "0-1"]
[ECO "B06"]
[WhiteElo "2344"]
[BlackElo "2101"]
[Annotator "NA"]
[PlyCount "80"]
[EventDate "2018.10.27"]
[EventType "swiss"]
[EventCountry "GER"]
[SourceTitle "playchess.com"]
[Source "ChessBase"]
[SourceQuality "1"]
[TimeControl "40/5400+30:1800+30"]

1. e4 {[%emt 0:00:00]} g6 {[%emt 0:00:00]} 2. d4 {[%emt 0:00:42]} Bg7 {[%emt 0:00:00]} 3. Nc3 {[%emt 0:02:50]} d6 {[%emt 0:00:06]} 4. Be3 {[%emt 0:00:37]} a6 {[%emt 0:00:09]} 5. Qd2 {[%emt 0:01:25]} Nd7 {[%emt 0:00:24]} 6. f4 {[%emt 0:04:53]} b5 {[%emt 0:00:54]} 7. Be2 {[%emt 0:03:23]} Bb7 {[%emt 0:00:51]} 8. Bf3 {[%emt 0:00:18]} Nb6 {[%emt 0:05:30]} 9. b3 {[%emt 0:02:54]} Nf6 {[%emt 0:01:14]} 10. e5 {[%emt 0:03:46]} Nfd5 {[%emt 0:00:25]} 11. Nxd5 {[%emt 0:01:01]} Bxd5 {[%emt 0:00:19]} 12. Rd1 {[%emt 0:03:20]} O-O {[%emt 0:01:17]} 13. Bxd5 {[%emt 0:06:42]} Nxd5 {[%emt 0:01:16]} 14. Ne2 {[%emt 0:00:27]} f6 {[%emt 0:17:55]} 15. O-O {[%emt 0:03:40]} Qd7 {[%emt 0:01:08]} 16. exd6 {[%emt 0:01:10]} cxd6 {[%emt 0:01:54]} 17. f5 {[%emt 0:01:56]} gxf5 {[%emt 0:00:52]} 18. Ng3 {[%emt 0:00:20]} e6 {[%emt 0:00:53]} 19. c4 {[%emt 0:03:56]} bxc4 {[%emt 0:00:57]} 20. bxc4 {[%emt 0:00:57]} Nb6 {[%emt 0:01:07]} 21. Qb4 {[%emt 0:03:01]} Rfb8 {[%emt 0:05:17]} 22. Bf4 {[%emt 0:10:02]} Bf8 {[%emt 0:01:34]} 23. Qc3 {[%emt 0:00:18]} Rc8 {[%emt 0:01:31]} 24. Nh5 {[%emt 0:10:51]} Qf7 {[%emt 0:04:29]} 25. Qh3 {[%emt 0:00:32]} Rxc4 {[%emt 0:02:02]} 26. Qb3 {[%emt 0:16:36]} Qxh5 {[%emt 0:20:14]} 27. Qxb6 {[%emt 0:00:37]} Qe8 {[%emt 0:03:30]} 28. Qb3 {[%emt 0:02:38]} Rac8 {[%emt 0:04:03]} 29. Rd3 {[%emt 0:02:58]} Qf7 {[%emt 0:01:49]} 30. Rg3+ {[%emt 0:03:47]} Kh8 {[%emt 0:00:09]} 31. Be3 {[%emt 0:00:49]} d5 {[%emt 0:00:56]} 32. Qb6 {[%emt 0:01:13]} R4c6 {[%emt 0:00:22]} 33. Qb1 {[%emt 0:00:31]} Bd6 {[%emt 0:00:32]} 34. Rgf3 {[%emt 0:03:01]} Rc2 {[%emt 0:01:17]} 35. Qb6 {[%emt 0:01:22]} R8c6 {[%emt 0:04:41]} 36. Qb3 {[%emt 0:00:48]} Qc7 {[%emt 0:00:40]} 37. Bf4 {[%emt 0:02:05]} Bxf4 {[%emt 0:04:48]} 38. Rxf4 {[%emt 0:00:08]} Rb6 {[%emt 0:03:39]} 39. Qa3 {[%emt 0:02:20]} Qd6 {[%emt 0:01:00]} 40. Qa4 {[%emt 0:01:23]} Rbb2 {[%emt 0:01:08]} 0-1

[Event "22nd OIBM 2018"]
[Site "Gmund am Tegernsee"]
[Date "2018.10.28"]
[Round "2"]
[White "Raupp, Thomas"]
[Black "Wuest, Klaus"]
[Result "*"]
[ECO "D97"]
[WhiteElo "2291"]
[BlackElo "2006"]
[Annotator "NA"]
[PlyCount "25"]
[EventDate "2018.10.27"]
[EventType "swiss"]
[EventCountry "GER"]
[SourceTitle "playchess.com"]
[Source "ChessBase"]
[SourceQuality "1"]
[TimeControl "40/5400+30:1800+30"]

1. d4 {[%emt 0:00:00]} Nf6 {[%emt 0:00:00]} 2. c4 {[%emt 0:00:00]} g6 {[%emt 0:00:00]} 3. Nc3 {[%emt 0:00:00]} d5 {[%emt 0:00:00]} 4. Nf3 {[%emt 0:00:02]} Bg7 {[%emt 0:00:07]} 5. Qb3 {[%emt 0:00:22]} dxc4 {[%emt 0:00:50]} 6. Qxc4 {[%emt 0:00:08]} O-O {[%emt 0:00:19]} 7. e4 {[%emt 0:00:44]} a6 {[%emt 0:00:43]} 8. e5 {[%emt 0:01:00]} Nfd7 {[%emt 0:00:43]} 9. e6 {[%emt 0:02:43]} fxe6 {[%emt 0:02:06]} 10. Be3 {[%emt 0:01:02]} Nf6 {[%emt 0:03:08]} 11. Be2 {[%emt 0:07:52]} b5 {[%emt 0:02:21]} 12. Qb3 {[%emt 0:00:09]} Nc6 {[%emt 0:14:42]} 13. Rd1 {[%emt 0:19:25]} *

[Event "22nd OIBM 2018"]
[Site "Gmund am Tegernsee"]
[Date "2018.10.28"]
[Round "2"]
[White "Ciolek, Andreas"]
[Black "Schmidt, Gerhard"]
[Result "1/2-1/2"]
[ECO "D12"]
[WhiteElo "2241"]
[BlackElo "2068"]
[Annotator "NA"]
[PlyCount "41"]
[EventDate "2018.10.27"]
[EventType "swiss"]
[EventCountry "GER"]
[SourceTitle "playchess.com"]
[Source "ChessBase"]
[SourceQuality "1"]
[TimeControl "40/5400+30:1800+30"]

1. d4 {[%emt 0:00:00]} d5 {[%emt 0:00:00]} 2. c4 {[%emt 0:00:00]} c6 {[%emt 0:00:33]} 3. Nf3 {[%emt 0:00:21]} Nf6 {[%emt 0:00:18]} 4. e3 {[%emt 0:01:37]} Bf5 {[%emt 0:00:54]} 5. Nc3 {[%emt 0:01:57]} e6 6. Nh4 {[%emt 0:01:44]} Bg6 {[%emt 0:01:46]} 7. Nxg6 {[%emt 0:01:28]} hxg6 {[%emt 0:00:10]} 8. Be2 {[%emt 0:01:51]} Qc7 {[%emt 0:02:43]} 9. h3 Nbd7 {[%emt 0:00:52]} 10. Qc2 {[%emt 0:09:10]} Be7 {[%emt 0:06:08]} 11. Bd2 {[%emt 0:02:25]} O-O {[%emt 0:05:35]} 12. O-O {[%emt 0:01:46]} dxc4 {[%emt 0:11:01]} 13. Bxc4 {[%emt 0:00:51]} c5 {[%emt 0:01:35]} 14. d5 {[%emt 0:03:37]} exd5 {[%emt 0:12:59]} 15. Nxd5 {[%emt 0:00:35]} Nxd5 {[%emt 0:00:27]} 16. Bxd5 {[%emt 0:00:11]} Nf6 17. Bc4 {[%emt 0:03:35]} Rad8 {[%emt 0:06:01]} 18. Rfd1 {[%emt 0:00:26]} a6 {[%emt 0:00:57]} 19. a4 {[%emt 0:00:17]} g5 {[%emt 0:11:41]} 20. Qf5 {[%emt 0:12:30]} Ne8 {[%emt 0:11:12]} 21. Qf3 {[%emt 0:06:11]} 1/2-1/2

[Event "22nd OIBM 2018"]
[Site "Gmund am Tegernsee"]
[Date "2018.10.28"]
[Round "2"]
[White "Gueci, Tea"]
[Black "Meins, Gerlef"]
[Result "1/2-1/2"]
[ECO "B67"]
[WhiteElo "2166"]
[BlackElo "2408"]
[Annotator "NA"]
[PlyCount "72"]
[EventDate "2018.10.27"]
[EventType "swiss"]
[EventCountry "GER"]
[SourceTitle "playchess.com"]
[Source "ChessBase"]
[SourceQuality "1"]
[TimeControl "40/5400+30:1800+30"]

1. e4 {[%emt 0:00:00]} c5 {[%emt 0:00:00]} 2. Nf3 {[%emt 0:00:00]} Nc6 {[%emt 0:00:00]} 3. d4 {[%emt 0:00:00]} cxd4 {[%emt 0:00:00]} 4. Nxd4 {[%emt 0:00:00]} Nf6 {[%emt 0:00:01]} 5. Nc3 {[%emt 0:00:00]} d6 {[%emt 0:00:14]} 6. Bg5 {[%emt 0:00:02]} e6 {[%emt 0:00:12]} 7. Qd2 {[%emt 0:00:14]} a6 {[%emt 0:01:24]} 8. O-O-O {[%emt 0:00:15]} Bd7 {[%emt 0:00:41]} 9. f3 {[%emt 0:00:15]} h6 {[%emt 0:07:21]} 10. Be3 {[%emt 0:01:30]} b5 {[%emt 0:02:54]} 11. Nxc6 {[%emt 0:02:38]} Bxc6 {[%emt 0:00:48]} 12. Kb1 {[%emt 0:00:21]} Qc7 {[%emt 0:05:03]} 13. Ne2 {[%emt 0:02:50]} Bb7 {[%emt 0:04:48]} 14. h4 {[%emt 0:05:48]} Nd7 {[%emt 0:26:00]} 15. Rh3 {[%emt 0:10:24]} Ne5 {[%emt 0:04:36]} 16. Nd4 {[%emt 0:03:58]} Be7 {[%emt 0:09:43]} 17. Be2 {[%emt 0:09:13]} Rd8 {[%emt 0:08:03]} 18. g4 {[%emt 0:05:13]} d5 {[%emt 0:06:09]} 19. f4 {[%emt 0:05:59]} Nc4 {[%emt 0:00:32]} 20. Bxc4 {[%emt 0:00:17]} dxc4 {[%emt 0:00:37]} 21. e5 {[%emt 0:05:52]} h5 {[%emt 0:01:01]} 22. Qe2 {[%emt 0:11:19]} g6 {[%emt 0:00:31]} 23. gxh5 {[%emt 0:02:46]} Rxh5 {[%emt 0:00:08]} 24. Rg1 {[%emt 0:03:56]} Be4 {[%emt 0:01:09]} 25. Bf2 {[%emt 0:02:21]} Qb7 {[%emt 0:01:29]} 26. Re1 {[%emt 0:01:49]} Bf5 {[%emt 0:05:06]} 27. Nxf5 {[%emt 0:01:26]} Rxf5 {[%emt 0:03:59]} 28. h5 {[%emt 0:02:32]} gxh5 {[%emt 0:01:57]} 29. Rxh5 {[%emt 0:00:58]} Rxh5 {[%emt 0:00:25]} 30. Qxh5 {[%emt 0:00:03]} Qg2 {[%emt 0:06:51]} 31. Bb6 {[%emt 0:05:12]} Rd2 {[%emt 0:01:11]} 32. Qh8+ {[%emt 0:10:06]} Bf8 {[%emt 0:01:11]} 33. Bc5 {[%emt 0:01:23]} Qg7 {[%emt 0:00:21]} 34. Qh1 {[%emt 0:01:10]} Qg2 {[%emt 0:00:16]} 35. Qh8 {[%emt 0:02:04]} Qg7 {[%emt 0:00:06]} 36. Qh1 {[%emt 0:01:56]} Qg2 {[%emt 0:00:38]} 1/2-1/2

[Event "22nd OIBM 2018"]
[Site "Gmund am Tegernsee"]
[Date "2018.10.28"]
[Round "2"]
[White "Gohla, Ulf"]
[Black "Zajogin, Alexander"]
[Result "1/2-1/2"]
[ECO "E32"]
[WhiteElo "2158"]
[BlackElo "2408"]
[Annotator "NA"]
[PlyCount "32"]
[EventDate "2018.10.27"]
[EventType "swiss"]
[EventCountry "GER"]
[SourceTitle "playchess.com"]
[Source "ChessBase"]
[SourceQuality "1"]
[TimeControl "40/5400+30:1800+30"]

1. d4 {[%emt 0:00:00]} Nf6 {[%emt 0:00:00]} 2. c4 {[%emt 0:00:00]} e6 {[%emt 0:00:00]} 3. Nc3 {[%emt 0:00:00]} Bb4 {[%emt 0:00:00]} 4. Qc2 {[%emt 0:00:00]} O-O {[%emt 0:00:50]} 5. Nf3 {[%emt 0:00:30]} c5 {[%emt 0:02:37]} 6. dxc5 {[%emt 0:00:09]} Na6 {[%emt 0:04:42]} 7. g3 {[%emt 0:02:48]} Nxc5 {[%emt 0:03:13]} 8. Bd2 {[%emt 0:03:34]} b6 {[%emt 0:16:11]} 9. Bg2 {[%emt 0:03:52]} Ba6 {[%emt 0:04:05]} 10. a3 {[%emt 0:11:58]} Bxc3 {[%emt 0:00:19]} 11. Bxc3 {[%emt 0:01:28]} Rc8 {[%emt 0:13:30]} 12. O-O {[%emt 0:09:59]} Nce4 {[%emt 0:02:15]} 13. Bb4 {[%emt 0:13:37]} Re8 {[%emt 0:26:05]} 14. Ne5 {[%emt 0:07:11]} d5 {[%emt 0:00:36]} 15. Qa4 {[%emt 0:03:29]} Bxc4 {[%emt 0:03:34]} 16. Qxa7 {[%emt 0:02:38]} Qc7 {[%emt 0:07:23]} 1/2-1/2

[Event "22nd OIBM 2018"]
[Site "Gmund am Tegernsee"]
[Date "2018.10.28"]
[Round "2"]
[White "Schatz, Christian"]
[Black "Pirrot, Dieter"]
[Result "1-0"]
[ECO "A40"]
[WhiteElo "2153"]
[BlackElo "2373"]
[Annotator "NA RC"]
[PlyCount "87"]
[EventDate "2018.10.27"]
[EventType "swiss"]
[EventCountry "GER"]
[SourceTitle "playchess.com"]
[Source "ChessBase"]
[SourceQuality "1"]
[TimeControl "40/5400+30:1800+30"]

1. d4 {[%emt 0:00:00]} e6 {[%emt 0:00:27]} 2. Nf3 {[%emt 0:01:35]} f5 {[%emt 0:00:28]} 3. c4 {[%emt 0:01:34]} Nf6 {[%emt 0:00:38]} 4. Nc3 {[%emt 0:00:09]} Be7 {[%emt 0:01:22]} 5. g3 {[%emt 0:02:58]} O-O {[%emt 0:01:14]} 6. Bg2 {[%emt 0:00:05]} d6 {[%emt 0:00:49]} 7. O-O {[%emt 0:00:38]} Ne4 {[%emt 0:00:24]} 8. Qc2 {[%emt 0:02:16]} Nxc3 {[%emt 0:00:38]} 9. bxc3 {[%emt 0:04:15]} Nc6 {[%emt 0:00:42]} 10. e4 {[%emt 0:05:25]} e5 {[%emt 0:05:45]} 11. dxe5 {[%emt 0:13:26]} dxe5 {[%emt 0:00:56]} 12. Rd1 {[%emt 0:01:29]} Qe8 {[%emt 0:00:59]} 13. Ne1 {[%emt 0:10:19]} f4 {[%emt 0:05:49]} 14. gxf4 {[%emt 0:04:12]} exf4 {[%emt 0:02:30]} 15. f3 {[%emt 0:00:08]} Be6 {[%emt 0:05:42]} 16. Nd3 {[%emt 0:02:12]} g5 {[%emt 0:11:44]} 17. Qa4 {[%emt 0:07:02]} Qf7 {[%emt 0:08:20]} 18. Rb1 {[%emt 0:03:23]} Rab8 {[%emt 0:04:12]} 19. Ba3 {[%emt 0:02:00]} Rfd8 {[%emt 0:16:38]} 20. Nb4 {[%emt 0:16:07]} Ne5 {[%emt 0:04:35]} 21. Nd5 {[%emt 0:02:11]} Bxa3 {[%emt 0:03:25]} 22. Qxa3 {[%emt 0:00:08]} c6 {[%emt 0:08:17]} 23. Ne7+ {[%emt 0:01:21]} Kh8 {[%emt 0:00:50]} 24. Qc5 {[%emt 0:01:52]} Qf6 {[%emt 0:03:11]} 25. Nf5 {[%emt 0:00:55]} Bxf5 {[%emt 0:01:56]} 26. exf5 {[%emt 0:00:13]} b6 {[%emt 0:01:44]} 27. Qa3 {[%emt 0:00:54]} Nxc4 {[%emt 0:01:20]} 28. Qxa7 {[%emt 0:00:27]} Qxf5 {[%emt 0:00:49]} 29. Qc7 {[%emt 0:01:31]} Qc5+ {[%emt 0:04:53]} 30. Kh1 {[%emt 0:00:18]} Rxd1+ {[%emt 0:00:31]} 31. Rxd1 {[%emt 0:00:07]} Re8 {[%emt 0:00:40]} 32. Qf7 {[%emt 0:02:47]} Rf8 {[%emt 0:00:24]} 33. Rd8 {[%emt 0:04:04]} Rxd8 {[%emt 0:00:49]} 34. Qf6+ {[%emt 0:00:05]} Kg8 {[%emt 0:00:08]} 35. Qxd8+ {[%emt 0:00:03]} Kf7 {[%emt 0:00:37]} 36. Bf1 {[%emt 0:01:40]} Ne3 {[%emt 0:03:15]} 37. Bd3 {[%emt 0:02:00]} Qd5 {[%emt 0:00:23]} 38. Qc7+ {[%emt 0:00:18]} Kf6 {[%emt 0:00:32]} 39. Be2 {[%emt 0:00:24]} h5 {[%emt 0:00:39]} 40. Qxb6 {[%emt 0:00:46]} g4 {[%emt 0:01:02]} 41. Qc7 {[%emt 0:32:52]} Kg5 {[%emt 0:10:05]} 42. Qe7+ {[%emt 0:00:00]} Kf5 {[%emt 0:03:06]} 43. Bd3+ {[%emt 0:00:00]} Qxd3 {[%emt 0:00:07]} 44. Qh7+ {[%emt 0:00:00]} 1-0

[Event "22nd OIBM 2018"]
[Site "Gmund am Tegernsee"]
[Date "2018.10.28"]
[Round "2"]
[White "Subramanian, Aditya"]
[Black "Zude, Arno"]
[Result "0-1"]
[ECO "A06"]
[WhiteElo "2151"]
[BlackElo "2349"]
[Annotator "NA"]
[PlyCount "82"]
[EventDate "2018.10.27"]
[EventType "swiss"]
[EventCountry "GER"]
[SourceTitle "playchess.com"]
[Source "ChessBase"]
[SourceQuality "1"]
[TimeControl "40/5400+30:1800+30"]

1. Nf3 {[%emt 0:00:00]} d5 {[%emt 0:00:00]} 2. g3 {[%emt 0:00:00]} c6 {[%emt 0:00:00]} 3. Bg2 {[%emt 0:00:00]} Bg4 {[%emt 0:00:12]} 4. c4 {[%emt 0:00:42]} e6 {[%emt 0:00:09]} 5. h3 {[%emt 0:01:19]} Bh5 {[%emt 0:00:24]} 6. O-O {[%emt 0:02:23]} Nf6 {[%emt 0:03:27]} 7. d3 {[%emt 0:06:11]} Be7 {[%emt 0:14:34]} 8. cxd5 {[%emt 0:07:36]} Bxf3 {[%emt 0:01:49]} 9. Bxf3 {[%emt 0:02:13]} cxd5 {[%emt 0:00:19]} 10. b3 {[%emt 0:15:13]} Nc6 {[%emt 0:01:35]} 11. Bb2 {[%emt 0:00:09]} O-O {[%emt 0:00:56]} 12. Nd2 {[%emt 0:02:32]} Qa5 {[%emt 0:04:54]} 13. a3 {[%emt 0:03:58]} Rfd8 {[%emt 0:02:27]} 14. Bg2 {[%emt 0:04:41]} Nd7 {[%emt 0:05:25]} 15. Nf3 {[%emt 0:06:43]} Bf6 {[%emt 0:01:57]} 16. d4 {[%emt 0:00:38]} Qb6 {[%emt 0:07:48]} 17. Qd3 {[%emt 0:03:18]} a5 {[%emt 0:03:00]} 18. e3 {[%emt 0:06:09]} a4 {[%emt 0:14:18]} 19. b4 {[%emt 0:01:15]} Na7 {[%emt 0:12:10]} 20. e4 {[%emt 0:09:41]} Qb5 {[%emt 0:02:31]} 21. Qe3 {[%emt 0:03:43]} Nb6 {[%emt 0:08:26]} 22. Nd2 {[%emt 0:04:31]} Rac8 23. e5 Be7 {[%emt 0:00:34]} 24. Rfc1 {[%emt 0:01:41]} Qd7 {[%emt 0:06:29]} 25. Bf1 {[%emt 0:00:57]} Rxc1 {[%emt 0:00:51]} 26. Rxc1 {[%emt 0:00:07]} Rc8 {[%emt 0:00:06]} 27. Rxc8+ {[%emt 0:01:46]} Nbxc8 {[%emt 0:02:28]} 28. Bd3 {[%emt 0:03:26]} b5 {[%emt 0:00:39]} 29. Nf3 {[%emt 0:03:21]} Nb6 {[%emt 0:00:39]} 30. Qf4 {[%emt 0:00:23]} Nc4 {[%emt 0:01:36]} 31. Bc1 {[%emt 0:00:01]} Qc7 {[%emt 0:02:38]} 32. Bxh7+ {[%emt 0:02:27]} Kxh7 {[%emt 0:00:05]} 33. Qxf7 {[%emt 0:00:07]} Qd8 {[%emt 0:01:00]} 34. Bg5 {[%emt 0:01:26]} Bxg5 {[%emt 0:00:34]} 35. h4 {[%emt 0:02:50]} Bh6 {[%emt 0:00:59]} 36. h5 {[%emt 0:01:02]} Nc6 {[%emt 0:00:48]} 37. g4 {[%emt 0:01:04]} Qe7 {[%emt 0:00:44]} 38. Qg6+ {[%emt 0:00:16]} Kg8 {[%emt 0:00:04]} 39. g5 {[%emt 0:02:33]} Qf7 {[%emt 0:00:12]} 40. Qd3 {[%emt 0:00:24]} Qxh5 {[%emt 0:00:09]} 41. gxh6 {[%emt 0:30:04]} Qxh6 {[%emt 0:30:12]} 0-1

[Event "22nd OIBM 2018"]
[Site "Gmund am Tegernsee"]
[Date "2018.10.28"]
[Round "2"]
[White "Paris, Michael"]
[Black "Slugin, Sergey"]
[Result "1-0"]
[ECO "B56"]
[WhiteElo "2117"]
[BlackElo "2362"]
[Annotator "NA"]
[PlyCount "87"]
[EventDate "2018.10.27"]
[EventType "swiss"]
[EventCountry "GER"]
[SourceTitle "playchess.com"]
[Source "ChessBase"]
[SourceQuality "1"]
[TimeControl "40/5400+30:1800+30"]

1. e4 {[%emt 0:00:00]} c5 {[%emt 0:00:00]} 2. Nf3 {[%emt 0:00:00]} Nc6 {[%emt 0:00:00]} 3. d4 {[%emt 0:00:00]} cxd4 {[%emt 0:00:00]} 4. Nxd4 {[%emt 0:00:00]} Nf6 {[%emt 0:00:08]} 5. Nc3 {[%emt 0:00:00]} d6 {[%emt 0:00:07]} 6. f3 {[%emt 0:00:02]} e5 {[%emt 0:00:26]} 7. Nb3 {[%emt 0:00:06]} Be7 {[%emt 0:00:11]} 8. Be3 {[%emt 0:00:06]} O-O {[%emt 0:00:14]} 9. Qd2 {[%emt 0:00:11]} a5 {[%emt 0:00:07]} 10. Bb5 {[%emt 0:00:08]} Be6 {[%emt 0:03:11]} 11. Rd1 {[%emt 0:00:43]} Na7 {[%emt 0:02:13]} 12. Be2 {[%emt 0:02:32]} Nc6 {[%emt 0:02:08]} 13. Bb5 {[%emt 0:01:32]} Na7 {[%emt 0:00:15]} 14. Bd3 {[%emt 0:00:06]} Nc8 {[%emt 0:11:41]} 15. O-O {[%emt 0:03:36]} a4 {[%emt 0:05:49]} 16. Nc1 {[%emt 0:00:20]} Nb6 {[%emt 0:07:08]} 17. Qf2 {[%emt 0:02:00]} Nc4 {[%emt 0:00:41]} 18. Bxc4 {[%emt 0:00:06]} Bxc4 {[%emt 0:00:03]} 19. Rfe1 {[%emt 0:16:26]} Qc8 {[%emt 0:08:41]} 20. a3 {[%emt 0:04:40]} Qc6 {[%emt 0:03:03]} 21. Nd3 {[%emt 0:01:33]} Bxd3 {[%emt 0:10:33]} 22. Rxd3 {[%emt 0:00:09]} h6 {[%emt 0:00:23]} 23. Red1 {[%emt 0:02:01]} Rfc8 {[%emt 0:04:54]} 24. R1d2 {[%emt 0:02:43]} b5 {[%emt 0:06:07]} 25. Na2 {[%emt 0:07:47]} Qb7 {[%emt 0:05:42]} 26. Nb4 {[%emt 0:01:32]} Rc4 {[%emt 0:03:50]} 27. c3 {[%emt 0:02:26]} Kf8 {[%emt 0:07:27]} 28. Rd1 {[%emt 0:04:33]} Rd8 {[%emt 0:04:34]} 29. Qd2 {[%emt 0:03:17]} Rdc8 {[%emt 0:01:06]} 30. h3 {[%emt 0:03:50]} Kg8 {[%emt 0:01:36]} 31. g4 {[%emt 0:02:34]} Nh7 {[%emt 0:02:21]} 32. Nd5 {[%emt 0:05:41]} Bd8 {[%emt 0:01:39]} 33. Qg2 {[%emt 0:04:18]} R8c6 {[%emt 0:04:53]} 34. Nb4 {[%emt 0:00:46]} Rc8 {[%emt 0:01:15]} 35. Rxd6 {[%emt 0:00:32]} Bg5 {[%emt 0:00:24]} 36. Bf2 {[%emt 0:04:02]} Nf6 {[%emt 0:00:23]} 37. Rb6 {[%emt 0:03:45]} Qa8 {[%emt 0:02:18]} 38. Rxb5 {[%emt 0:00:26]} Bf4 {[%emt 0:00:33]} 39. Rb6 {[%emt 0:02:00]} Rd8 {[%emt 0:01:00]} 40. Rbd6 {[%emt 0:02:26]} Rcc8 {[%emt 0:01:43]} 41. Qf1 {[%emt 0:31:31]} h5 {[%emt 0:05:27]} 42. Qa6 {[%emt 0:00:00]} Rxd6 {[%emt 0:01:40]} 43. Rxd6 {[%emt 0:00:00]} hxg4 {[%emt 0:00:49]} 44. Qxa8 {[%emt 0:00:00]} 1-0

[Event "22nd OIBM 2018"]
[Site "Gmund am Tegernsee"]
[Date "2018.10.28"]
[Round "2"]
[White "Brychcy, Felix"]
[Black "Hacker, Jonas"]
[Result "0-1"]
[ECO "D00"]
[WhiteElo "2081"]
[BlackElo "2345"]
[Annotator "NA"]
[PlyCount "64"]
[EventDate "2018.10.27"]
[EventType "swiss"]
[EventCountry "GER"]
[SourceTitle "playchess.com"]
[Source "ChessBase"]
[SourceQuality "1"]
[TimeControl "40/5400+30:1800+30"]

1. d4 {[%emt 0:00:00]} d5 {[%emt 0:00:00]} 2. Bf4 {[%emt 0:00:00]} Nf6 {[%emt 0:00:03]} 3. e3 {[%emt 0:00:00]} c5 {[%emt 0:00:44]} 4. c3 {[%emt 0:00:01]} Nc6 {[%emt 0:00:18]} 5. Nd2 {[%emt 0:01:57]} e6 {[%emt 0:00:09]} 6. Ngf3 {[%emt 0:00:26]} Bd6 {[%emt 0:00:15]} 7. Bg3 {[%emt 0:00:50]} O-O {[%emt 0:00:16]} 8. Bd3 {[%emt 0:00:31]} b6 {[%emt 0:00:23]} 9. e4 {[%emt 0:00:57]} Be7 {[%emt 0:00:20]} 10. e5 {[%emt 0:00:18]} Nh5 {[%emt 0:00:24]} 11. Ng5 {[%emt 0:19:39]} Bxg5 {[%emt 0:00:28]} 12. Qxh5 {[%emt 0:00:45]} g6 {[%emt 0:00:06]} 13. Qe2 {[%emt 0:04:29]} cxd4 {[%emt 0:00:07]} 14. Nf3 {[%emt 0:37:22]} dxc3 {[%emt 0:12:06]} 15. bxc3 {[%emt 0:06:45]} f5 {[%emt 0:32:05]} 16. Nxg5 {[%emt 0:07:18]} Qxg5 {[%emt 0:00:09]} 17. h4 {[%emt 0:04:32]} Qh6 {[%emt 0:14:41]} 18. f4 {[%emt 0:02:49]} Bd7 {[%emt 0:01:30]} 19. Qe3 {[%emt 0:04:52]} Rac8 {[%emt 0:06:03]} 20. Kd2 {[%emt 0:03:19]} Be8 {[%emt 0:04:22]} 21. h5 {[%emt 0:00:21]} gxh5 {[%emt 0:01:10]} 22. Bh4 {[%emt 0:01:19]} Bg6 {[%emt 0:05:16]} 23. Rab1 {[%emt 0:01:53]} Rf7 {[%emt 0:03:00]} 24. Ba6 {[%emt 0:00:53]} Rcc7 {[%emt 0:01:47]} 25. Bb5 {[%emt 0:00:09]} Na5 {[%emt 0:01:47]} 26. Rb4 {[%emt 0:00:00]} Rf8 {[%emt 0:01:29]} 27. Rh3 {[%emt 0:01:00]} Rfc8 {[%emt 0:01:18]} 28. Bg5 {[%emt 0:00:56]} Qf8 {[%emt 0:00:52]} 29. Ba6 {[%emt 0:00:35]} Rxc3 {[%emt 0:06:36]} 30. Qxc3 {[%emt 0:00:02]} Rxc3 {[%emt 0:00:08]} 31. Rxc3 {[%emt 0:00:03]} Qxb4 {[%emt 0:00:12]} 32. Kc2 {[%emt 0:00:30]} Nc4 {[%emt 0:00:20]} 0-1